Cogmind - Beta 16 @@@ ROGUE MODE // 2025.11.03 @ 22:25:35 Player: War__Prophet Result: Destroyed by H-61 Shepherd with Heavy Assault Cannon Performance ------------- Evolutions (2) 1000 Regions Visited (3) 600 Robots Destroyed (8) 40 Value Destroyed (301) 301 Prototype IDs (0) 0 Alien Tech Used (0) 0 Bonus (200) 200 TOTAL SCORE: 2141 Bonus ------- Pacifist 200 Cogmind --------- Core Integrity 0/550 Matter 76/300 Energy 99/100 System Corruption 0% Temperature Cool (0) Movement Core (50) Location -8/Materials Parts ------- > --- POWER (1) -------- (None) > --- PROPULSION (2) --- (None) > --- UTILITY (6) ------ (None) > --- WEAPON (2) ------- (None) > --- INVENTORY (5) ---- Power Maul Power Maul Power Maul Power Maul Peak State ------------ > --- POWER ------------ (None) > --- PROPULSION ------- (None) > --- UTILITY ---------- Visual Processing Unit Visual Processing Unit Visual Processing Unit Improved Terrain Scan Processor Improved Terrain Scan Processor Improved Terrain Scan Processor > --- WEAPON ----------- (None) > --- INVENTORY -------- Rocket Launcher [Rating: 15] Favorites ----------- Power Light Ion Engine Engine Light Ion Engine Propulsion Wheel Wheel Wheel Utility Visual Processing Unit Device ECM Suite Storage Small Storage Unit Processor Visual Processing Unit Protection Hardened Light Armor Plating Weapon Rocket Launcher Energy Gun Medium Laser Launcher Rocket Launcher Build | -11 -10 -9 -8 ------- Run | Yrd Mat Mat Mat Slots Evolved 4 | . . 2 2 Power . | . . . . Propulsion . | . . . . Utility 4 | . . 2 2 Weapon . | . . . . Parts Attached 19 | 6 1 3 9 Power 1 | 1 . . . Engine 1 | 1 . . . Core . | . . . . Reactor . | . . . . Propulsion 2 | 2 . . . Treads . | . . . . Leg . | . . . . Wheel 2 | 2 . . . Hover . | . . . . Flight . | . . . . Utility 13 | 1 1 2 9 Device 2 | . 1 1 . Storage 1 | 1 . . . Processor 9 | . . . 9 Hackware . | . . . . Protection 1 | . . 1 . Artifact . | . . . . Weapon 3 | 2 . 1 . Energy Gun 2 | 2 . . . Energy Cannon . | . . . . Ballistic Gun . | . . . . Ballistic Cannon . | . . . . Launcher 1 | . . 1 . Special Weapon . | . . . . Impact Weapon . | . . . . Slashing Weapon . | . . . . Piercing Weapon . | . . . . Special Melee Weapon . | . . . . Unidentified Prototypes . | . . . . Parts Lost 3 | . . . 3 Power . | . . . . Propulsion . | . . . . Utility 2 | . . . 2 Weapon 1 | . . . 1 Highest Loss Streak 3 | . . . 3 To Critical Strikes . | . . . . Average Backups . | . 1 . 1 Power . | . 1 . . Propulsion . | . . . . Utility . | . . . . Weapon . | . . . . Tool/Special . | . . . . Unused Backups 3 | . 1 . 2 Power 2 | . 1 . 1 Propulsion 1 | . . . 1 Utility . | . . . . Weapon . | . . . . Tool/Special . | . . . . Average Slot Usage (%) 39 | . 64 17 37 Engine 5 | . 14 2 . Wheel 10 | . 28 4 . Device 5 | . 7 8 . Storage 5 | . 14 2 . Processor 11 | . . . 36 Peak Build Rating 15 | 4 5 5 15 Average Rating 4 | 3 4 1 9 On Entrance 2 | . 4 5 . Avg Prop Armor Cover (%) . | . . . . Naked Turns 47 | . . 33 14 Heaviest Build 10 | 8 10 10 4 Greatest Support 20 | 20 20 20 3 Greatest Overweight (x) 1 | . . . 1 Average Overweight (x) . | . . . . Largest Inventory Capacity 8 | 8 8 8 5 Average Capacity 6 | 6 8 5 5 Most Carried 4 | 1 4 2 4 Average Carried . | . 1 . 1 Final Capacity 8 | 8 8 5 5 Final Carried 4 | 1 . 1 4 Class Distribution -------------------- 100% | Mutant Dominant Class ---------------- Mutant | -10/Materials Mutant | -9/Materials Mutant | -8/Materials Resources | -11 -10 -9 -8 ----------- Run | Yrd Mat Mat Mat Matter Collected 315 | 244 . . 71 Remotely . | . . . . Salvage Created 277 | . . 57 220 Parts 14 | . . 2 12 Haulers Intercepted . | . . . . Recyclers Shooed 2 | . . . 2 Parts Field Recycled . | . . . . Retrieved Matter . | . . . . Parts Self-Destructed . | . . . . Prevented . | . . . . Parts Restored . | . . . . Kills | -11 -10 -9 -8 ------- Run | Yrd Mat Mat Mat Combat Hostiles Destroyed 6 | . . 2 4 AOE 6 | . . 2 4 Classes Destroyed 5 | . . 2 3 Builder 1 | . . . 1 Recycler 1 | . . . 1 Grunt 4 | . . 1 3 Duelist 1 | . . 1 . Sentry 1 | . . . 1 Best Kill Streak 6 | . . 2 6 Combat Bots Only 4 | . . 2 4 Max Kills in Single Turn 3 | . . 1 3 Gunslinging . | . . . . Exploded 3 | . . 1 3 Melee . | . . . . Uniques/NPCs Destroyed . | . . . . Combat | -11 -10 -9 -8 -------- Run | Yrd Mat Mat Mat Hostile Shots Fired 59 | . . 26 33 Missed 17 | . . 9 8 Hits 42 | . . 17 25 Melee 7 | . . . 7 Projectile 35 | . . 17 18 AOE 3 | . . . 3 Critical Strikes 3 | . . . 3 Damage Taken 993 | . 3 301 689 Core 816 | . . 243 573 Absorbed by Shields . | . . . . Core Remaining (%) 79 | 100 100 39 . Volleys Fired 11 | . . 3 8 Largest 1 | . . 1 1 Hottest 33 | . . 33 33 Shots Fired 11 | . . 3 8 Gun . | . . . . Cannon . | . . . . Launcher 11 | . . 3 8 Special . | . . . . Kinetic . | . . . . Thermal . | . . . . Explosive 11 | . . 3 8 Electromagnetic . | . . . . Robot Hit Streak 5 | . . 2 5 Robot Miss Streak 1 | . . 1 1 Penetration Max . | . . . . Secondary Targets . | . . . . Shots Hit Robots 8 | . . 2 6 Core Hits 20 | . . 5 15 Critical Kills . | . . . . Critical Parts Destroyed . | . . . . Critical Strikes . | . . . . Melee Attacks . | . . . . Impact . | . . . . Slashing . | . . . . Piercing . | . . . . Sneak Attacks . | . . . . Combat Hostiles . | . . . . Follow-up Attacks . | . . . . Damage Inflicted 549 | . 6 150 393 Guns . | . . . . Cannons . | . . . . Explosions 540 | . . 147 393 Melee . | . . . . Ramming 9 | . 6 3 . Kinetic . | . . . . Thermal . | . . . . Explosive 540 | . . 147 393 Electromagnetic . | . . . . Impact . | . . . . Slashing . | . . . . Piercing . | . . . . Highest Corruption . | . . . . Average Corruption . | . . . . Corruption Purged . | . . . . Corruption Blocked . | . . . . Overload Shots . | . . . . Overflow Damage 30 | . . . 30 Projectiles . | . . . . Explosions 30 | . . . 30 Melee . | . . . . Knockbacks . | . . . . Impact . | . . . . Kinetic . | . . . . Secondary . | . . . . Self-Inflicted Damage 215 | . 3 53 159 Shots 5 | . . 1 4 Rammed 2 | . 1 1 . Targets Rammed 2 | . 1 1 . Kicked . | . . . . Crushed . | . . . . Highest Temperature 3 | . . 3 . Average Temperature 3 | . . 3 . Received Heat Transfer 156 | . . 75 81 Siege Activations . | . . . . Martial Activations . | . . . . Shielding Activations . | . . . . Robots Disrupted . | . . . . Combat Hostiles . | . . . . Robots Corrupted . | . . . . Combat Hostiles . | . . . . Parts Fried . | . . . . Impact Corruptions . | . . . . Robots Melted . | . . . . Combat Hostiles . | . . . . Parts Melted . | . . . . Heat Transferred . | . . . . Parts Sabotaged . | . . . . Parts Stolen . | . . . . Parts Stripped . | . . . . Power Chain Reactions . | . . . . Alert | -11 -10 -9 -8 ------- Run | Yrd Mat Mat Mat Maximum Alert Level . | . . . . Low Security (%) 100 | 100 100 100 100 Level 1 . | . . . . Level 2 . | . . . . Level 3 . | . . . . Level 4 . | . . . . Level 5 . | . . . . High Security . | . . . . Max Security . | . . . . Peak Influence 166 | . . 123 166 Initial 51 | . . . 51 Average 29 | . . 14 87 Influence Increases 343 | . . 153 190 Destroy 0b10 Robot/C 120 | . . 40 80 Destroy 0b10 Robot/NC 10 | . . . 10 Destroy Leader 30 | . . 10 20 Disable Machine 30 | . . 30 . Destroy Structure 93 | . . 43 50 Partial Spotted 15 | . . 15 . Lose Combat Pursuer 45 | . . 15 30 Influence Decreases 192 | . . 30 162 Entered New Map 72 | . . . 72 Time Decay 90 | . . 30 60 Lost Part 30 | . . . 30 Squads Dispatched 3 | . . 2 1 Investigation . | . . . . Extermination . | . . . . Reinforcement 3 | . . 2 1 Assault . | . . . . Garrison . | . . . . Intercept . | . . . . Searches Triggered . | . . . . Construction Impeded . | . . . . Haulers Reinforced . | . . . . Active Scanning Responses . | . . . . Cargo Convoy Interrupts . | . . . . Stealth | -11 -10 -9 -8 --------- Run | Yrd Mat Mat Mat Distress Signals 4 | . . 1 3 Communications Jammed . | . . . . Distress Signals . | . . . . Times Spotted 23 | . 1 10 12 Peak Tracking Total 10 | . 1 6 10 Tactical Retreats 4 | . 1 1 2 ECM-based Alert Blocks 2 | . 2 . . Traps | -11 -10 -9 -8 ------- Run | Yrd Mat Mat Mat Traps Triggered . | . . . . Indirectly . | . . . . Trap Hack Attempts . | . . . . Triggered . | . . . . Disarmed . | . . . . Reprogrammed . | . . . . Reused . | . . . . Traps Extracted . | . . . . Installed . | . . . . Triggered . | . . . . Machines | -11 -10 -9 -8 ---------- Run | Yrd Mat Mat Mat Machines Disabled 2 | . . 2 . Max in Single Turn 2 | . . 2 . Machines Repaired . | . . . . Machines Dismantled . | . . . . Machines Sabotaged . | . . . . Overloaded Fab Kills . | . . . . Hacking | -11 -10 -9 -8 --------- Run | Yrd Mat Mat Mat Machines Accessed . | . . . . Terminals . | . . . . Fabricators . | . . . . Repair Stations . | . . . . Recycling Units . | . . . . Scanalyzers . | . . . . Garrison Access . | . . . . Total Hacks . | . . . . Successful . | . . . . Failed . | . . . . Catastrophic . | . . . . Database Lockouts . | . . . . Manual . | . . . . Terminals . | . . . . Fabricators . | . . . . Repair Stations . | . . . . Recycling Units . | . . . . Scanalyzers . | . . . . Garrison Access . | . . . . Terminal Hacks . | . . . . Fabricator Hacks . | . . . . Repair Station Hacks . | . . . . Recycling Unit Hacks . | . . . . Scanalyzer . | . . . . Garrison Access Hacks . | . . . . Unauthorized Hacks . | . . . . Terminals . | . . . . Fabricators . | . . . . Repair Stations . | . . . . Recycling Units . | . . . . Scanalyzers . | . . . . Garrison Access . | . . . . Data Cores Recovered . | . . . . Used . | . . . . Hacking Detections . | . . . . Full Trace Events . | . . . . Feedback Events . | . . . . Feedback Blocked . | . . . . Robot Schematics Acquired . | . . . . Robots Built . | . . . . Authchips . | . . . . Time . | . . . . Total Robot Build Rating . | . . . . Part Schematics Acquired . | . . . . Parts Built . | . . . . Authchips . | . . . . Time . | . . . . Total Part Build Rating . | . . . . Part Studies Acquired . | . . . . Parts Repaired . | . . . . Time . | . . . . Parts Recycled . | . . . . Recycled Matter . | . . . . Retrieved Matter . | . . . . Retrieved Components . | . . . . Parts Scanalyzed . | . . . . Part Schematics Acquired . | . . . . Parts Damaged . | . . . . Bothacking | -11 -10 -9 -8 ------------ Run | Yrd Mat Mat Mat Used RIF Installer . | . . . . Robots Hacked . | . . . . Non-combat . | . . . . Combat . | . . . . Robot Hacks Applied . | . . . . Relay Couplers Released . | . . . . Fabnet Peak Effective % . | . . . . Robots Rewired . | . . . . Allies Hacked . | . . . . Hacks Repelled . | . . . . Allies | -11 -10 -9 -8 -------- Run | Yrd Mat Mat Mat Total Allies . | . . . . Largest Group . | . . . . Highest-Rated Group . | . . . . Highest-Rated Ally . | . . . . Total Orders . | . . . . Ally Attacks . | . . . . Total Damage . | . . . . Kills . | . . . . Allies Corrupted . | . . . . Allies Melted . | . . . . Intel | -11 -10 -9 -8 ------- Run | Yrd Mat Mat Mat Active Infowar (turns) 212 | . 77 38 97 Optics 97 | . . . 97 ECM 115 | . 77 38 . Robot Analysis Total . | . . . . Derelict Logs Recovered . | . . . . Drone Launches . | . . . . Drone Recoveries . | . . . . Exploration | -11 -10 -9 -8 ------------- Run | Yrd Mat Mat Mat Turns Passed 443 | 46 130 139 128 Spaces Moved 576 | 44 153 212 167 Core 366 | 4 . 195 167 Treads . | . . . . Legs . | . . . . Wheels 210 | 40 153 17 . Hover . | . . . . Flight . | . . . . Fastest Speed 50 | 50 80 50 50 Average Speed 61 | 77 80 52 52 Slowest Speed 100 | 80 80 80 100 Overloaded Moves . | . . . . Propulsion Burnouts . | . . . . Robots Hopped . | . . . . Potential Cave-ins . | . . . . Cave-ins Triggered . | . . . . Exploration Rate (%) 21 | 3 37 24 23 Regions Visited 3 Branch Regions . Pre-discovered Areas . | . . . . Known Exits Taken . | . . . . Unknown Exits Taken 3 | 1 1 1 . Scrap Searched . | . . . . Spaces Dug 5 | . . . 5 Terrain Destroyed 122 | . . 66 56 Melee . | . . . . Projectile . | . . . . AOE 122 | . . 66 56 Terrain Rammed . | . . . . Walls Destroyed . | . . . . Machines Disabled . | . . . . Actions | -11 -10 -9 -8 --------- Run | Yrd Mat Mat Mat Total 649 | 54 161 236 198 Wait 11 | . . 11 . Move 573 | 43 152 211 167 Hop . | . . . . Pick Up 11 | 1 3 1 6 Fast Attach 19 | 6 1 3 9 Attach 5 | . . 3 2 Detach 9 | 2 . 3 4 Swap . | . . . . Drop 8 | 2 4 . 2 Fire 11 | . . 3 8 Melee . | . . . . Ram 2 | . 1 1 . Kick . | . . . . Crush . | . . . . Escape Stasis . | . . . . Rewire . | . . . . Trap . | . . . . Miscellaneous . | . . . . Route ------- -11/Scrapyard -10/Materials -9/Materials -8/Materials (discovered 1 exit: [*Fac]) History --------- Turn | Location | Event 6 | -11/Scrapyard | Discovered new exit (range 15) 47 | -11/Scrapyard | Entered Materials 171 | -10/Materials | Discovered new exit (range 8) 177 | -10/Materials | Entered another Materials area 177 | -9/Materials | Evolved 2 slots: Utility x2 191 | -9/Materials | Released all parts (5) 276 | -9/Materials | Released all parts (3) 307 | -9/Materials | Core integrity fell below 50% 307 | -9/Materials | Discovered new exit (range 16) 316 | -9/Materials | Entered another Materials area 316 | -8/Materials | Evolved 2 slots: Utility x2 371 | -8/Materials | Build established: Mutant 430 | -8/Materials | Discovered new exit (range 10) 431 | -8/Materials | Core integrity fell below 50% 435 | -8/Materials | Released all parts (4) 442 | -8/Materials | Core integrity fell below 20% 444 | -8/Materials | Destroyed by H-61 Shepherd with Heavy Assault Cannon Last Messages --------------- 00418_ U-05 Engineer builds a Wall. 00419_ The unstable cave ceiling collapses. 00420_ W-25 Informer sends out distress signal. 00420_ R-06 Scavenger collects Heat Sink. 00422_ R-06 Scavenger collects Wheel. 00423_ K-01 Serf collects debris. 00426_ ALERT: Suspicious intruders detected, dispatching Cutter reinforcements to area. 00430_ EXIT=FOUND 00430_ Knocked back. 00431_ Visual Processing Unit destroyed. 00431_ Knocked back. 00431_ K-01 Serf collects debris. 00431_ Knocked back. 00435_ Released Visual Processing Unit. 00436_ Acquired Power Maul. 00438_ Dropped Lgt. Nuclear Core. 00438_ Dropped Carbon-fiber Leg. 00439_ The unstable cave ceiling collapses. 00439_ Acquired Power Maul. Map ----- +----------------------------------------------------+ | ????????????????????????????### | | ????????????????????????????# ### | | ??????????????????# ####### # | | ??????????????????# = ! | | ??????????????????# ###### # | | ???????????????????????### | | ???????????????????????# | | ???????????????????????# | | ???????????????????????# | | ???????????????????????# ! | | ???????????????????????# # | | ??????????????????# ???####### # | | ??????????????????# ###T#T##= | | ??????????????????# | | ??????????????????# % | | ??????????????????# ! | | ??????????????????# ####### | | ???????############ ??????## | | ???????# #??????## | | ???????? < #???????## | | ????????? ? ?????????# | | ??????????#" #??" #??????????# | | ???????????#H ###"T#??????????# | | ???????####; ## ##?????????# | | ???????#!! ########### | | ???????#!@ | | ???????#==% | | ???????#=c | | ???????# c ####### | | ???????# c* # # #?????? | | ???????##### #####! !#?????? | | ???????????+ ##???##!!!!##?????? | | ???????????# #?????######??????? | | ???????????# #?????????????????? | | ???????????# #?????????????????? | | ???????????# ###?????????????????? | | ???????????# #???????????????????? | | ???????????# #???????????????????? | | ???????????# #???????????????????? | | ???????????# ????????????????????? | | ???????????# ????????????????????? | | ???????????# ????????????????????? | | ???????????# ????????????????????? | | ???????????# ????????????????????? | | ???????????? ????????????????????? | | ???????????? ????????????????????? | | ???????????? ????????????????????? | | ?????????????????????????????????? | | ?????????????????????????????????? | | ?????????????????????????????????? | +----------------------------------------------------+ Best States ------------- Heat Dissipation 31 Energy Generation 10 Energy Capacity 125 Matter Stores 284 Matter Capacity 300 Sight Range 18 Terrain Scan Density 310 ECM Strength 1 Evasion (%) 50 Item Schematics ----------------- None Robot Schematics ------------------ None Fabricated ------------ Nothing Repaired ---------- Nothing Studied --------- None Alien Tech Used ----------------- None Achievements -------------- None Challenges ------------ None Game ------ Seed ShadingFrostMediator Manual? 0 Play Time 00:05:21 Cumulative 43.6 hours Start 2025.11.03 @ 22:21:37 End 2025.11.03 @ 22:25:35 Sessions 1 Manual Loads 0 Difficulty Rogue Special Mode None Game No. 172 Rogue 172 Adventurer 0 Explorer 0 Win Type - Total 0 Types 0/0/0/0/0/0/0/0/0/0 Lore% 12 Gallery% 34 Achievement% 22 Wizard Run 0 Options --------- Layout 1 ASCII 0 Keyboard 1 Movement Vi Keybinds 0 Fullscreen 1 Font 16/SmallcapsGlow Map View 55x38 Zoom Use 0% Tactical HUD 1 Map Filters NONE Filters NONE Steam 1 RUN: d0e91dcc-5927-43f7-95c0-fbd80ad80305